[Event "*** Titled Tuesday 3|2 Blitz"]
[Site "Chess.com"]
[Date "2015.01.27"]
[Round "3"]
[White "GeorgMeier"]
[Black "Beca95"]
[Result "1-0"]
[WhiteElo "2670"]
[BlackElo "2487"]
[TimeControl "180+2"]
[EndTime "11:49:23 PST"]
[Termination "GeorgMeier won on time"]

1. Nf3 {[%clk 0:03:00]} 1... Nf6 {[%clk 0:02:57.9]} 2. g3 {[%clk 0:03:01.4]}
2... g6 {[%clk 0:02:58.5]} 3. Bg2 {[%clk 0:03:02.9]} 3... Bg7 {[%clk 0:02:59.9]}
4. d4 {[%clk 0:03:04.2]} 4... O-O {[%clk 0:03:00.2]} 5. O-O {[%clk 0:03:05.8]}
5... d6 {[%clk 0:03:01.1]} 6. b3 {[%clk 0:03:07.3]} 6... c6 {[%clk 0:03:02.3]}
7. Bb2 {[%clk 0:03:08.4]} 7... Bg4 {[%clk 0:03:03.5]} 8. Nbd2 {[%clk 0:03:09.4]}
8... Nbd7 {[%clk 0:03:03.2]} 9. Re1 {[%clk 0:03:08.6]} 9... Bxf3 {[%clk
0:03:02]} 10. Bxf3 {[%clk 0:03:08.4]} 10... d5 {[%clk 0:03:02.9]} 11. c4 {[%clk
0:03:07.4]} 11... e6 {[%clk 0:03:03.8]} 12. Qc2 {[%clk 0:03:08.4]} 12... Re8
{[%clk 0:03:04.2]} 13. Rad1 {[%clk 0:03:09.9]} 13... a6 {[%clk 0:03:05.5]} 14.
Bc3 {[%clk 0:02:45]} 14... Qc7 {[%clk 0:02:56.4]} 15. a4 {[%clk 0:02:41.6]}
15... Rac8 {[%clk 0:02:49.3]} 16. e3 {[%clk 0:02:35.1]} 16... e5 {[%clk
0:02:40]} 17. dxe5 {[%clk 0:02:32.4]} 17... Nxe5 {[%clk 0:02:40.6]} 18. Bxe5
{[%clk 0:02:33.8]} 18... Qxe5 {[%clk 0:02:41.5]} 19. Bg2 {[%clk 0:02:34.7]}
19... Rcd8 {[%clk 0:02:37.4]} 20. cxd5 {[%clk 0:02:24.1]} 20... Nxd5 {[%clk
0:02:36]} 21. Nc4 {[%clk 0:02:24.6]} 21... Qc3 {[%clk 0:02:31.1]} 22. Qxc3
{[%clk 0:02:00.5]} 22... Nxc3 {[%clk 0:02:33]} 23. Rxd8 {[%clk 0:01:51.6]} 23...
Rxd8 {[%clk 0:02:34.9]} 24. a5 {[%clk 0:01:50.8]} 24... f5 {[%clk 0:02:30.5]}
25. Bf1 {[%clk 0:01:50]} 25... Kf7 {[%clk 0:02:27.4]} 26. f3 {[%clk 0:01:46.2]}
26... Bf6 {[%clk 0:02:23.8]} 27. Rc1 {[%clk 0:01:45.6]} 27... Nb5 {[%clk
0:02:19.2]} 28. Kf2 {[%clk 0:01:42.5]} 28... Ke6 {[%clk 0:02:02.8]} 29. Be2
{[%clk 0:01:43.2]} 29... Nc3 {[%clk 0:02:01.5]} 30. h3 {[%clk 0:01:40.7]} 30...
Rd5 {[%clk 0:01:53.8]} 31. Rc2 {[%clk 0:01:31.7]} 31... Nxe2 {[%clk 0:01:40.8]}
32. Kxe2 {[%clk 0:01:29.9]} 32... Rb5 {[%clk 0:01:41.9]} 33. g4 {[%clk
0:01:15.6]} 33... Rxb3 {[%clk 0:01:41.3]} 34. f4 {[%clk 0:01:16.8]} 34... Rc3
{[%clk 0:01:28]} 35. Rxc3 {[%clk 0:01:17.2]} 35... Bxc3 {[%clk 0:01:29.9]} 36.
Kd3 {[%clk 0:01:19.1]} 36... Bb4 {[%clk 0:01:31.1]} 37. e4 {[%clk 0:01:20.2]}
37... Be1 {[%clk 0:01:23.7]} 38. Ke3 {[%clk 0:01:12.3]} 38... Bb4 {[%clk
0:01:12.1]} 39. Kf3 {[%clk 0:01:07.3]} 39... Bc5 {[%clk 0:01:06.8]} 40. h4
{[%clk 0:01:06.1]} 40... Bd4 {[%clk 0:00:42.2]} 41. h5 {[%clk 0:01:03]} 41...
Bc5 {[%clk 0:00:40.4]} 42. exf5+ {[%clk 0:00:47.2]} 42... gxf5 {[%clk
0:00:40.1]} 43. g5 {[%clk 0:00:49.1]} 43... Bd4 {[%clk 0:00:38.9]} 44. h6 {[%clk
0:00:46.1]} 44... c5 {[%clk 0:00:19.9]} 45. Ke2 {[%clk 0:00:31.7]} 45... Bc3
{[%clk 0:00:16.7]} 46. Kd3 {[%clk 0:00:30.4]} 46... Bh8 {[%clk 0:00:15.9]} 47.
Ne3 {[%clk 0:00:20.1]} 47... Bd4 {[%clk 0:00:15.9]} 48. Nc4 {[%clk 0:00:21.1]}
48... Bh8 {[%clk 0:00:16.8]} 49. Kd2 {[%clk 0:00:19.8]} 49... Kd5 {[%clk
0:00:14.9]} 50. Kd3 {[%clk 0:00:20.9]} 50... Ke6 {[%clk 0:00:16.5]} 51. Nb6
{[%clk 0:00:15.7]} 51... Bb2 {[%clk 0:00:13.5]} 52. Ke3 {[%clk 0:00:09.4]} 52...
Bc1+ {[%clk 0:00:13.9]} 53. Kf3 {[%clk 0:00:10.5]} 53... Bb2 {[%clk 0:00:15.1]}
54. Nc4 {[%clk 0:00:11.5]} 54... Bh8 {[%clk 0:00:15.1]} 55. Ke2 {[%clk
0:00:12.8]} 55... Kd5 {[%clk 0:00:16.4]} 56. Kd3 {[%clk 0:00:12.6]} 56... Ke6
{[%clk 0:00:18.1]} 57. Ne3 {[%clk 0:00:12.3]} 57... Bd4 {[%clk 0:00:18.5]} 58.
Nc4 {[%clk 0:00:12.2]} 58... Bh8 {[%clk 0:00:19.2]} 59. Kd2 {[%clk 0:00:12.7]}
59... Kd5 {[%clk 0:00:20.3]} 60. Kd3 {[%clk 0:00:14]} 60... Ke6 {[%clk
0:00:21.7]} 61. Nb6 {[%clk 0:00:15]} 61... Bb2 {[%clk 0:00:21.4]} 62. Nc4 {[%clk
0:00:06.7]} 62... Bh8 {[%clk 0:00:22.2]} 63. Ke2 {[%clk 0:00:07.6]} 63... Kd5
{[%clk 0:00:23.2]} 64. Kd3 {[%clk 0:00:08.8]} 64... Ke6 {[%clk 0:00:24.6]} 65.
Ne3 {[%clk 0:00:10.2]} 65... Bd4 {[%clk 0:00:25]} 66. Nc4 {[%clk 0:00:10.9]}
66... Bh8 {[%clk 0:00:26]} 67. Nd2 {[%clk 0:00:12]} 67... Kd5 {[%clk 0:00:26.1]}
68. Nc4 {[%clk 0:00:12.5]} 68... Ke6 {[%clk 0:00:27.2]} 69. Kc2 {[%clk
0:00:11.8]} 69... Kd5 {[%clk 0:00:22.5]} 70. Kd3 {[%clk 0:00:12.9]} 70... Ke6
{[%clk 0:00:23.8]} 71. Nb6 {[%clk 0:00:11.2]} 71... Bb2 {[%clk 0:00:20.9]} 72.
Nc4 {[%clk 0:00:06.9]} 72... Bh8 {[%clk 0:00:21.8]} 73. Kd2 {[%clk 0:00:07.6]}
73... Kd5 {[%clk 0:00:22.5]} 74. Kd3 {[%clk 0:00:09.1]} 74... Ke6 {[%clk
0:00:23.9]} 75. Ne3 {[%clk 0:00:09.8]} 75... Bd4 {[%clk 0:00:24]} 76. Nc4 {[%clk
0:00:10.9]} 76... Bh8 {[%clk 0:00:24.7]} 77. Nd2 {[%clk 0:00:11.4]} 77... Kd5
{[%clk 0:00:24.3]} 78. Nc4 {[%clk 0:00:11.9]} 78... Ke6 {[%clk 0:00:25.5]} 79.
Ne3 {[%clk 0:00:05.8]} 79... Bd4 {[%clk 0:00:24.6]} 80. Nc4 {[%clk 0:00:06.8]}
80... Bh8 {[%clk 0:00:25.3]} 81. Ne3 {[%clk 0:00:06.8]} 81... Bd4 {[%clk
0:00:25.4]} 82. Nc4 {[%clk 0:00:08]} 82... Bh8 {[%clk 0:00:26.3]} 83. Ne3 {[%clk
0:00:07.3]} 83... Bd4 {[%clk 0:00:25.6]} 84. Nc4 {[%clk 0:00:08]} 84... Bh8
{[%clk 0:00:23.4]} 85. Ne5 {[%clk 0:00:08.6]} 85... Bxe5 {[%clk 0:00:12.6]} 86.
fxe5 {[%clk 0:00:10.5]} 86... Kf7 {[%clk 0:00:14.2]} 87. Ke3 {[%clk 0:00:10.2]}
87... Kf8 {[%clk 0:00:04.6]} 88. e6 {[%clk 0:00:05.9]} 88... c4 {[%clk
0:00:05.5]} 89. Kd4 {[%clk 0:00:05.8]} 89... f4 {[%clk 0:00:07]} 90. Kxc4 {[%clk
0:00:06.7]} 90... f3 {[%clk 0:00:08.9]} 91. Kd3 {[%clk 0:00:07.9]} 91... f2
{[%clk 0:00:10.8]} 92. Ke2 {[%clk 0:00:08.7]} 92... f1=Q+ {[%clk 0:00:12.7]} 93.
Kxf1 {[%clk 0:00:09.5]} 93... Ke7 {[%clk 0:00:14.6]} 94. g6 {[%clk 0:00:10.9]}
1-0

[Event "*** Titled Tuesday 3|2 Blitz"]
[Site "Chess.com"]
[Date "2015.01.27"]
[Round "4"]
[White "gumersindo"]
[Black "samhawkins"]
[Result "1-0"]
[WhiteElo "2120"]
[BlackElo "2310"]
[TimeControl "180+2"]
[EndTime "11:53:31 PST"]
[Termination "gumersindo won by resignation"]

1. d4 {[%clk 0:03:00]} 1... d5 {[%clk 0:02:58.7]} 2. c4 {[%clk 0:03:00.8]} 2...
c6 {[%clk 0:02:59.9]} 3. Nf3 {[%clk 0:03:01.1]} 3... Nf6 {[%clk 0:03:00.8]} 4.
Nc3 {[%clk 0:03:01.9]} 4... dxc4 {[%clk 0:03:01.4]} 5. a4 {[%clk 0:03:01.9]}
5... Bf5 {[%clk 0:03:02.1]} 6. Ne5 {[%clk 0:03:03.3]} 6... e6 {[%clk 0:03:02.8]}
7. f3 {[%clk 0:03:03.4]} 7... Bb4 {[%clk 0:03:03.8]} 8. e4 {[%clk 0:03:04.5]}
8... Bxe4 {[%clk 0:03:05.4]} 9. fxe4 {[%clk 0:03:05.3]} 9... Nxe4 {[%clk
0:03:07.3]} 10. Qf3 {[%clk 0:03:04.9]} 10... Ng5 {[%clk 0:02:56.1]} 11. Bxg5
{[%clk 0:02:58.1]} 11... Qxg5 {[%clk 0:02:58]} 12. Qxf7+ {[%clk 0:02:55.1]}
12... Kd8 {[%clk 0:02:59.1]} 13. Qf3 {[%clk 0:02:43.3]} 13... Rf8 {[%clk
0:02:38.1]} 14. Qg3 {[%clk 0:02:34.8]} 14... Qf5 {[%clk 0:02:33]} 15. O-O-O
{[%clk 0:02:22.5]} 15... Nd7 {[%clk 0:02:21.8]} 16. Nxd7 {[%clk 0:02:13.9]}
16... Kxd7 {[%clk 0:02:23.7]} 17. Bxc4 {[%clk 0:02:14]} 17... Bd6 {[%clk
0:02:19.7]} 18. Qd3 {[%clk 0:02:05.6]} 18... Qg5+ {[%clk 0:02:13.9]} 19. Kb1
{[%clk 0:02:02.6]} 19... Rf2 {[%clk 0:02:08.3]} 20. Ne4 {[%clk 0:02:00.2]} 1-0

[Event "*** Titled Tuesday 3|2 Blitz"]
[Site "Chess.com"]
[Date "2015.01.27"]
[Round "4"]
[White "petrpalachev"]
[Black "Max_Schachmann"]
[Result "1-0"]
[WhiteElo "2417"]
[BlackElo "2398"]
[TimeControl "180+2"]
[EndTime "11:54:46 PST"]
[Termination "petrpalachev won by resignation"]

1. d4 {[%clk 0:03:00]} 1... Nf6 {[%clk 0:02:58.7]} 2. c4 {[%clk 0:03:00.1]} 2...
e6 {[%clk 0:02:59.6]} 3. Nf3 {[%clk 0:03:01.2]} 3... d5 {[%clk 0:03:00.2]} 4.
Nc3 {[%clk 0:03:02.1]} 4... c6 {[%clk 0:03:01.5]} 5. Bg5 {[%clk 0:03:02.7]} 5...
dxc4 {[%clk 0:03:01.6]} 6. e4 {[%clk 0:03:03.8]} 6... h6 {[%clk 0:03:02.8]} 7.
Bh4 {[%clk 0:03:04.5]} 7... b5 {[%clk 0:03:01.9]} 8. e5 {[%clk 0:03:05.6]} 8...
g5 {[%clk 0:03:03]} 9. Nxg5 {[%clk 0:03:07.3]} 9... hxg5 {[%clk 0:03:04.9]} 10.
Bxg5 {[%clk 0:03:09.2]} 10... Nbd7 {[%clk 0:03:05.3]} 11. exf6 {[%clk
0:03:10.2]} 11... Qb6 {[%clk 0:03:05.4]} 12. g3 {[%clk 0:03:10.4]} 12... Bb7
{[%clk 0:03:06.5]} 13. Bg2 {[%clk 0:03:11.9]} 13... c5 {[%clk 0:03:07.6]} 14. d5
{[%clk 0:03:13.1]} 14... O-O-O {[%clk 0:03:08.8]} 15. O-O {[%clk 0:03:13.7]}
15... b4 {[%clk 0:03:09.2]} 16. Rb1 {[%clk 0:03:15.4]} 16... Qa6 {[%clk
0:03:09.9]} 17. dxe6 {[%clk 0:03:11.7]} 17... Bxg2 {[%clk 0:03:07.5]} 18. e7
{[%clk 0:03:13.2]} 18... Bxf1 {[%clk 0:01:37]} 19. exd8=Q+ {[%clk 0:03:02.2]}
19... Kxd8 {[%clk 0:01:37.8]} 20. Kxf1 {[%clk 0:03:02.5]} 20... bxc3 {[%clk
0:01:32.3]} 21. bxc3 {[%clk 0:01:51.2]} 21... Qc6 {[%clk 0:01:32.2]} 22. Rb8+
{[%clk 0:01:20.3]} 1-0

[Event "*** Titled Tuesday 3|2 Blitz"]
[Site "Chess.com"]
[Date "2015.01.27"]
[Round "4"]
[White "Dlugy"]
[Black "Kacparov"]
[Result "0-1"]
[WhiteElo "2543"]
[BlackElo "2381"]
[TimeControl "180+2"]
[EndTime "11:55:32 PST"]
[Termination "Kacparov won by checkmate"]

1. d4 {[%clk 0:03:00]} 1... d5 {[%clk 0:02:59.1]} 2. c4 {[%clk 0:03:01.2]} 2...
e6 {[%clk 0:03:00.1]} 3. Nf3 {[%clk 0:03:02.7]} 3... c6 {[%clk 0:03:01.3]} 4.
Qc2 {[%clk 0:03:02.8]} 4... dxc4 {[%clk 0:03:00.9]} 5. Qxc4 {[%clk 0:03:03]}
5... b5 {[%clk 0:03:02.4]} 6. Qd3 {[%clk 0:03:03.4]} 6... Bb7 {[%clk 0:03:03.6]}
7. e4 {[%clk 0:03:04.2]} 7... a6 {[%clk 0:03:04.7]} 8. Bg5 {[%clk 0:03:03.8]}
8... Nf6 {[%clk 0:03:02]} 9. e5 {[%clk 0:03:02.6]} 9... h6 {[%clk 0:03:02.8]}
10. Bd2 {[%clk 0:02:44.4]} 10... Nd5 {[%clk 0:03:02.6]} 11. Be2 {[%clk
0:02:45.2]} 11... c5 {[%clk 0:03:03.5]} 12. O-O {[%clk 0:02:45.7]} 12... Nc6
{[%clk 0:03:01.7]} 13. dxc5 {[%clk 0:02:41.8]} 13... Bxc5 {[%clk 0:03:02.7]} 14.
Qe4 {[%clk 0:02:42.6]} 14... Qb6 {[%clk 0:03:01]} 15. a4 {[%clk 0:02:37.7]}
15... Nd4 {[%clk 0:02:46.6]} 16. Nxd4 {[%clk 0:02:31.8]} 16... Bxd4 {[%clk
0:02:47.5]} 17. Bf3 {[%clk 0:01:54]} 17... Bxb2 {[%clk 0:02:44.9]} 18. Ra2
{[%clk 0:01:52.2]} 18... Qd4 {[%clk 0:02:45.1]} 19. axb5 {[%clk 0:01:48.1]}
19... axb5 {[%clk 0:02:39.7]} 20. Rxa8+ {[%clk 0:01:46.9]} 20... Bxa8 {[%clk
0:02:41.6]} 21. Qc2 {[%clk 0:01:42.9]} 21... O-O {[%clk 0:02:39.2]} 22. Re1
{[%clk 0:01:41.8]} 22... Nb4 {[%clk 0:02:23]} 23. Qb3 {[%clk 0:01:43]} 23...
Bxf3 {[%clk 0:02:17.6]} 24. Bxb4 {[%clk 0:01:44.1]} 24... Bd5 {[%clk 0:02:15.8]}
25. Qc2 {[%clk 0:00:51.2]} 25... Qxb4 {[%clk 0:02:16.1]} 26. Re2 {[%clk
0:00:52.5]} 26... Bd4 {[%clk 0:02:16.4]} 27. h4 {[%clk 0:00:52.8]} 27... Qb3
{[%clk 0:02:06.6]} 28. Qc1 {[%clk 0:00:54.2]} 28... Qg3 {[%clk 0:01:46.7]} 29.
Qf1 {[%clk 0:00:55.2]} 29... Qxh4 {[%clk 0:01:42.6]} 30. Nd2 {[%clk 0:00:54.9]}
30... Qg4 {[%clk 0:01:42.9]} 31. Qe1 {[%clk 0:00:54.7]} 31... Qxg2# {[%clk
0:01:43]} 0-1

[Event "*** Titled Tuesday 3|2 Blitz"]
[Site "Chess.com"]
[Date "2015.01.27"]
[Round "4"]
[White "Tomsel"]
[Black "VovAn1991"]
[Result "0-1"]
[WhiteElo "2295"]
[BlackElo "2463"]
[TimeControl "180+2"]
[EndTime "11:56:17 PST"]
[Termination "VovAn1991 won by resignation"]

1. d4 {[%clk 0:03:00]} 1... Nf6 {[%clk 0:02:58.3]} 2. Bf4 {[%clk 0:03:00.5]}
2... g6 {[%clk 0:02:59.1]} 3. Nc3 {[%clk 0:03:00.5]} 3... d5 {[%clk 0:02:58.8]}
4. Qd2 {[%clk 0:03:00]} 4... Bf5 {[%clk 0:02:55.3]} 5. O-O-O {[%clk 0:02:51.5]}
5... h6 {[%clk 0:02:56.2]} 6. f3 {[%clk 0:02:44.7]} 6... Bg7 {[%clk 0:02:55.2]}
7. g4 {[%clk 0:01:45.3]} 7... Be6 {[%clk 0:02:53.4]} 8. h4 {[%clk 0:01:43.3]}
8... Nc6 {[%clk 0:02:45]} 9. Nh3 {[%clk 0:01:10]} 9... Nd7 {[%clk 0:02:43]} 10.
Be3 {[%clk 0:01:08.7]} 10... Nb6 {[%clk 0:02:43.3]} 11. b3 {[%clk 0:01:07.2]}
11... Qd6 {[%clk 0:02:43.3]} 12. Nb5 {[%clk 0:01:01.9]} 12... Qd7 {[%clk
0:02:43.8]} 13. Nf4 {[%clk 0:00:34.8]} 13... O-O-O {[%clk 0:02:44]} 14. Nxe6
{[%clk 0:00:25.9]} 14... fxe6 {[%clk 0:02:39.8]} 15. Bf4 {[%clk 0:00:27.3]}
15... e5 {[%clk 0:02:39.8]} 16. dxe5 {[%clk 0:00:20.6]} 16... Nxe5 {[%clk
0:02:40.7]} 17. Qa5 {[%clk 0:00:12.1]} 17... a6 {[%clk 0:02:37.4]} 18. Nc3
{[%clk 0:00:05.1]} 18... Rhf8 {[%clk 0:02:29.2]} 19. Bg3 {[%clk 0:00:05.6]}
19... Nc6 {[%clk 0:02:07.8]} 20. Qc5 {[%clk 0:00:06.6]} 20... Qe6 {[%clk
0:01:40.3]} 21. e4 {[%clk 0:00:03.1]} 21... d4 {[%clk 0:01:26.5]} 22. Nd5 {[%clk
0:00:02.6]} 22... Nxd5 {[%clk 0:01:26.6]} 23. exd5 {[%clk 0:00:04.1]} 23... Rxd5
{[%clk 0:01:28.5]} 24. Bc4 {[%clk 0:00:04.9]} 24... Qe3+ {[%clk 0:01:28.6]} 0-1

[Event "*** Titled Tuesday 3|2 Blitz"]
[Site "Chess.com"]
[Date "2015.01.27"]
[Round "4"]
[White "quitforever"]
[Black "Malev212"]
[Result "1-0"]
[WhiteElo "2222"]
[BlackElo "1957"]
[TimeControl "180+2"]
[EndTime "11:57:02 PST"]
[Termination "quitforever won by resignation"]

1. d4 {[%clk 0:02:59.2]} 1... Nf6 {[%clk 0:02:56.1]} 2. c4 {[%clk 0:02:59.1]}
2... e6 {[%clk 0:02:56.1]} 3. Nf3 {[%clk 0:03:00.1]} 3... d5 {[%clk 0:02:55.5]}
4. g3 {[%clk 0:03:00.2]} 4... Bb4+ {[%clk 0:02:53.9]} 5. Nbd2 {[%clk 0:02:56.3]}
5... O-O {[%clk 0:02:52.1]} 6. Bg2 {[%clk 0:02:57.3]} 6... c5 {[%clk 0:02:52.2]}
7. cxd5 {[%clk 0:02:54.2]} 7... exd5 {[%clk 0:02:50.8]} 8. O-O {[%clk 0:02:54]}
8... Nc6 {[%clk 0:02:43.3]} 9. dxc5 {[%clk 0:02:52.9]} 9... Bxc5 {[%clk
0:02:40]} 10. Nb3 {[%clk 0:02:52.9]} 10... Bb6 {[%clk 0:02:37.9]} 11. Nfd4
{[%clk 0:02:11.3]} 11... Re8 {[%clk 0:02:30.7]} 12. Re1 {[%clk 0:01:46.1]} 12...
Ne4 {[%clk 0:02:24.7]} 13. Be3 {[%clk 0:01:40.6]} 13... Ne5 {[%clk 0:02:19.8]}
14. Nc2 {[%clk 0:00:26.2]} 14... Bf5 {[%clk 0:02:13.9]} 15. Bxb6 {[%clk
0:00:25.7]} 15... Qxb6 {[%clk 0:02:09.5]} 16. Ne3 {[%clk 0:00:27.1]} 16... Bg6
{[%clk 0:01:35.2]} 17. Qd4 {[%clk 0:00:27.5]} 17... Qxd4 {[%clk 0:01:10.7]} 18.
Nxd4 {[%clk 0:00:27.5]} 18... Rad8 {[%clk 0:01:11.1]} 19. Rad1 {[%clk
0:00:22.8]} 19... Nc6 {[%clk 0:01:05.5]} 20. b3 {[%clk 0:00:13.1]} 20... h5
{[%clk 0:01:04.8]} 21. Nxc6 {[%clk 0:00:11.2]} 21... bxc6 {[%clk 0:01:04.8]} 22.
Rc1 {[%clk 0:00:12.1]} 22... d4 {[%clk 0:01:02.7]} 23. Nc4 {[%clk 0:00:12.5]}
23... c5 {[%clk 0:01:00.3]} 24. h4 {[%clk 0:00:12.7]} 24... Nc3 {[%clk
0:01:00.2]} 25. e3 {[%clk 0:00:07.4]} 25... d3 {[%clk 0:00:55.3]} 26. Rxc3
{[%clk 0:00:08]} 26... d2 {[%clk 0:00:52.3]} 27. Rd1 {[%clk 0:00:09.5]} 1-0

[Event "*** Titled Tuesday 3|2 Blitz"]
[Site "Chess.com"]
[Date "2015.01.27"]
[Round "4"]
[White "ChessWarrior7197"]
[Black "tac49"]
[Result "0-1"]
[WhiteElo "2145"]
[BlackElo "2196"]
[TimeControl "180+2"]
[EndTime "11:57:25 PST"]
[Termination "tac49 won by resignation"]

1. Nf3 {[%clk 0:03:00]} 1... d5 {[%clk 0:02:52.9]} 2. g3 {[%clk 0:03:00.8]} 2...
Bg4 {[%clk 0:02:44.6]} 3. Bg2 {[%clk 0:03:01.1]} 3... Nd7 {[%clk 0:02:43.2]} 4.
O-O {[%clk 0:03:01.1]} 4... e6 {[%clk 0:02:44]} 5. d4 {[%clk 0:02:57.8]} 5... c6
{[%clk 0:02:44.4]} 6. b3 {[%clk 0:02:58.3]} 6... Ngf6 {[%clk 0:02:45.3]} 7. Nbd2
{[%clk 0:02:59.3]} 7... Be7 {[%clk 0:02:46]} 8. Bb2 {[%clk 0:03:00.3]} 8... O-O
{[%clk 0:02:46.7]} 9. c4 {[%clk 0:03:01.1]} 9... a5 {[%clk 0:02:46.9]} 10. a4
{[%clk 0:02:55.6]} 10... h6 {[%clk 0:02:38.1]} 11. Re1 {[%clk 0:02:44.1]} 11...
Re8 {[%clk 0:02:35.8]} 12. Ne5 {[%clk 0:02:33.2]} 12... Nxe5 {[%clk 0:02:32.7]}
13. dxe5 {[%clk 0:02:33.9]} 13... Nd7 {[%clk 0:02:34.1]} 14. Qc2 {[%clk
0:02:26.2]} 14... Nc5 {[%clk 0:02:30.8]} 15. Rad1 {[%clk 0:01:48.2]} 15... Bf5
{[%clk 0:02:15.3]} 16. e4 {[%clk 0:01:45.7]} 16... Bg6 {[%clk 0:02:11.5]} 17.
Qc3 {[%clk 0:01:36.3]} 17... d4 {[%clk 0:01:48.8]} 18. Qxd4 {[%clk 0:01:31.2]}
18... Nd3 {[%clk 0:01:48.8]} 19. Rf1 {[%clk 0:01:19.3]} 19... Bc5 {[%clk
0:01:42]} 20. Qxd8 {[%clk 0:01:19]} 20... Raxd8 {[%clk 0:01:43.9]} 21. Bc3
{[%clk 0:01:18.3]} 21... Bh5 {[%clk 0:01:28.1]} 22. Bf3 {[%clk 0:00:32.6]} 22...
Nxf2 {[%clk 0:01:26]} 23. Rxf2 {[%clk 0:00:13.3]} 23... Bxf3 {[%clk 0:01:26.4]}
24. Rf1 {[%clk 0:00:14.8]} 24... Be2 {[%clk 0:01:06.1]} 25. Kg2 {[%clk
0:00:15.2]} 25... Bxf1+ {[%clk 0:01:06.8]} 26. Rxf1 {[%clk 0:00:16.5]} 26... Rd3
{[%clk 0:01:06.9]} 27. Nb1 {[%clk 0:00:16.7]} 27... Bb4 {[%clk 0:01:03.4]} 28.
Bxb4 {[%clk 0:00:17.1]} 28... axb4 {[%clk 0:01:04.4]} 29. Rf3 {[%clk 0:00:18.8]}
29... Red8 {[%clk 0:01:03.3]} 30. Kf2 {[%clk 0:00:18.9]} 30... Rd1 {[%clk
0:00:59.5]} 0-1

[Event "*** Titled Tuesday 3|2 Blitz"]
[Site "Chess.com"]
[Date "2015.01.27"]
[Round "4"]
[White "silverback96"]
[Black "megarompa"]
[Result "0-1"]
[WhiteElo "2024"]
[BlackElo "2617"]
[TimeControl "180+2"]
[EndTime "11:57:56 PST"]
[Termination "megarompa won by resignation"]

1. d4 {[%clk 0:03:00]} 1... d5 {[%clk 0:02:58]} 2. c4 {[%clk 0:02:59.9]} 2... e6
{[%clk 0:02:59.2]} 3. Nf3 {[%clk 0:03:01.1]} 3... Nf6 {[%clk 0:02:57.8]} 4. g3
{[%clk 0:03:01.9]} 4... Bb4+ {[%clk 0:02:56.6]} 5. Bd2 {[%clk 0:03:02.5]} 5...
Be7 {[%clk 0:02:57.5]} 6. Bg2 {[%clk 0:03:03.8]} 6... O-O {[%clk 0:02:57.9]} 7.
O-O {[%clk 0:03:05.3]} 7... c6 {[%clk 0:02:58]} 8. Qc2 {[%clk 0:03:06.4]} 8...
Ne4 {[%clk 0:02:57.7]} 9. Nc3 {[%clk 0:02:42.7]} 9... f5 {[%clk 0:02:58.1]} 10.
Nxe4 {[%clk 0:02:26.6]} 10... dxe4 {[%clk 0:02:53.1]} 11. Ne5 {[%clk 0:02:23.2]}
11... Qxd4 {[%clk 0:02:53.9]} 12. Bc3 {[%clk 0:02:18]} 12... Qb6 {[%clk
0:02:54.9]} 13. b4 {[%clk 0:02:06.8]} 13... Bf6 {[%clk 0:02:40.1]} 14. c5 {[%clk
0:02:04.1]} 14... Qc7 {[%clk 0:02:40.3]} 15. Nc4 {[%clk 0:02:04.8]} 15... Nd7
{[%clk 0:02:38.8]} 16. Bxf6 {[%clk 0:02:02.8]} 16... Nxf6 {[%clk 0:02:40.7]} 17.
Nd6 {[%clk 0:02:03.4]} 17... b6 {[%clk 0:02:38.2]} 18. Rfd1 {[%clk 0:01:50.1]}
18... bxc5 {[%clk 0:02:33.6]} 19. bxc5 {[%clk 0:01:50.5]} 19... Nd5 {[%clk
0:02:34.7]} 20. Rac1 {[%clk 0:01:49.3]} 20... Ba6 {[%clk 0:02:29.8]} 21. Rd2
{[%clk 0:01:37.4]} 21... Rab8 {[%clk 0:02:29.7]} 22. f3 {[%clk 0:01:32.8]} 22...
exf3 {[%clk 0:02:19.2]} 23. Bxf3 {[%clk 0:01:27.7]} 23... Qa5 {[%clk 0:02:19.8]}
24. Bxd5 {[%clk 0:01:23.4]} 24... exd5 {[%clk 0:02:17.4]} 25. Rd4 {[%clk
0:01:15.5]} 25... Qa3 {[%clk 0:01:46.9]} 26. Kf2 {[%clk 0:00:39.5]} 26... f4
{[%clk 0:01:34.3]} 27. Rxf4 {[%clk 0:00:38.2]} 27... Rxf4+ {[%clk 0:01:32.4]}
28. gxf4 {[%clk 0:00:39.6]} 28... Rb2 {[%clk 0:01:33.5]} 29. Rb1 {[%clk
0:00:20.8]} 29... Rxb1 {[%clk 0:01:27.6]} 30. Qxb1 {[%clk 0:00:21.1]} 30...
Qxc5+ {[%clk 0:01:29.2]} 31. e3 {[%clk 0:00:19.9]} 31... Qxd6 {[%clk 0:01:31.1]}
32. Qb3 {[%clk 0:00:20.8]} 32... Bc4 {[%clk 0:01:25.7]} 33. Qa4 {[%clk
0:00:21.7]} 33... h6 {[%clk 0:01:26.1]} 34. Qxa7 {[%clk 0:00:22.5]} 34... Qg6
{[%clk 0:01:26]} 35. Qb8+ {[%clk 0:00:20.8]} 35... Kh7 {[%clk 0:01:27]} 36. a4
{[%clk 0:00:22.5]} 36... Qc2+ {[%clk 0:01:21.5]} 37. Kg3 {[%clk 0:00:22.5]}
37... Qxa4 {[%clk 0:01:15.3]} 38. Qe5 {[%clk 0:00:22.5]} 38... Qc2 {[%clk
0:01:16.2]} 39. Qe6 {[%clk 0:00:22.2]} 39... Qg6+ {[%clk 0:01:16.4]} 40. Qxg6+
{[%clk 0:00:22.7]} 40... Kxg6 {[%clk 0:01:18.3]} 41. Kg4 {[%clk 0:00:23.8]}
41... Kf6 {[%clk 0:01:20.2]} 42. h4 {[%clk 0:00:24.2]} 42... Be2+ {[%clk
0:01:21.7]} 43. Kg3 {[%clk 0:00:25.3]} 43... h5 {[%clk 0:01:23.6]} 44. Kf2
{[%clk 0:00:26.4]} 44... Bd3 {[%clk 0:01:24.3]} 45. Ke1 {[%clk 0:00:27.8]} 45...
Be4 {[%clk 0:01:26.2]} 46. Kd2 {[%clk 0:00:29.4]} 46... Kf5 {[%clk 0:01:28.1]}
47. Kc3 {[%clk 0:00:31.1]} 47... c5 {[%clk 0:01:30]} 48. Kb3 {[%clk 0:00:32.1]}
48... Kg4 {[%clk 0:01:31.9]} 49. Kc3 {[%clk 0:00:33.7]} 49... Kxh4 {[%clk
0:01:33.5]} 0-1